bitfinex/quotes_ETHUSD_20251124
["timestamp","ask_amount","ask_price","bid_price","bid_amount"]
[1763982955338,8.06611124,2804.7,2804.6,0.001]
[1763982955636,8.25260447,2804.7,2804.6,0.001]
[1763982955842,0.405504,2804.6,2804.5,0.001]
[1763982956162,3.56611476,2804.6,2804.5,0.001]
[1763982956642,0.90699264,2804.5,2802.9,0.001]
[1763982956850,3.62418908,2804.6,2803.9,0.1429917]
[1763982956851,8.97310388,2804.4,2803.9,0.1429917]
[1763982957156,0.405504,2804.3,2802.9,0.001]
[1763982957351,6.55475626,2803.6,2803.5,0.14400857]
[1763982957530,7.11501079,2803.6,2803.5,0.14400857]
[1763982957731,8.67747906,2803.6,2803.5,0.001]
[1763982960453,9.08298306,2803.6,2803.5,0.001]
[1763982961267,9.08298306,2803.6,2802.9,0.001]
[1763982961268,1.31249664,2803.5,2802.9,0.001]
[1763982961468,7.8672529,2803.2,2802.9,0.001]
[1763982961776,8.42750743,2803.2,2802.9,0.001]
[1763982962279,7.79600343,2803.2,2802.9,0.001]
[1763982962577,8.02200343,2803.2,2802.9,0.001]
[1763982964075,7.79600343,2803.2,2802.9,0.001]
[1763982964247,8.90555857,2803.2,2802.9,0.001]
[1763982964449,9.31106257,2803.2,2802.9,0.001]
[1763982964654,6.96026026,2803.0,2802.9,0.001]
[1763982964885,6.96026026,2803.0,2802.3,0.001]
[1763982964886,1.31249664,2802.9,2802.3,0.001]
[1763982965051,7.4617489,2802.4,2802.3,0.001]
[1763982965366,7.6877489,2802.4,2802.3,0.001]
[1763982965568,8.0932529,2802.4,2802.3,0.001]
[1763982965873,0.405504,2802.3,2802.0,0.001]
[1763982966060,7.8672529,2802.1,2802.0,0.001]
[1763982966771,8.19939584,2802.1,2802.0,0.001]
[1763982967353,7.8672529,2802.1,2802.0,0.001]
[1763982970561,7.88327585,2802.1,2802.0,0.001]
[1763982971296,8.10927585,2802.1,2802.0,0.001]
[1763982971498,6.32,2802.7,2802.0,0.001]
[1763982971698,1.28675595,2803.4,2802.0,0.14412524]
[1763982971699,12.9451507,2802.9,2802.0,0.14412524]
[1763982971886,0.226,2802.8,2802.0,0.14412524]
[1763982972202,0.90699264,2802.5,2802.0,0.14412524]
[1763982972395,0.226,2802.4,2802.0,0.14412524]
[1763982972597,0.226,2802.3,2802.0,0.14412524]
[1763982973389,0.90699264,2802.8,2802.0,0.14412524]
[1763982973577,43.9187291,2803.6,2802.0,0.14412524]
[1763982973896,0.405504,2803.4,2802.0,0.14412524]
[1763982974102,0.90699264,2803.4,2802.0,0.14412524]
[1763982974809,0.405504,2803.3,2802.0,0.14412524]
[1763982976502,0.404704,2803.3,2802.0,0.001]
[1763982976839,0.226,2803.2,2802.1,0.24412524]
[1763982977043,0.226,2803.1,2802.1,0.24412524]
[1763982977334,0.226,2803.1,2802.1,0.14412524]
[1763982977629,0.226,2803.1,2802.1,0.24412524]
[1763982977842,0.226,2803.1,2802.1,0.14412524]
[1763982978038,0.226,2803.1,2802.1,0.24412524]
[1763982979657,0.226,2803.1,2802.1,0.14412524]
[1763982980605,0.226,2803.0,2802.1,0.14412524]
[1763982980804,0.226,2803.0,2802.1,0.24412524]
[1763982981118,0.226,2803.0,2802.1,0.14412524]
[1763982982820,0.002,2803.3,2802.1,0.14412524]
[1763982983022,0.002,2803.3,2802.2,0.405504]
[1763982983223,0.002,2803.3,2802.5,0.1]
[1763982983441,0.002,2803.3,2802.7,0.1]
[1763982984158,0.002,2803.3,2802.8,0.90699264]
[1763982988058,0.002,2803.3,2802.8,1.00699264]
[1763982991063,0.002,2803.3,2802.8,0.90699264]
[1763982999972,0.002,2803.3,2802.8,1.00699264]
[1763983000301,0.0012,2803.3,2802.8,1.00699264]
[1763983000669,0.0012,2803.3,2802.9,0.1]
[1763983001988,6.32,2803.8,2802.9,0.1]
[1763983002209,0.002,2803.9,2802.9,0.405504]
[1763983002490,0.002,2803.9,2803.3,0.1]
[1763983003075,0.002,2803.9,2803.4,0.41250739]
[1763983005708,0.002,2803.9,2803.4,0.44817836]
[1763983006003,0.002,2803.9,2803.4,0.41250739]
[1763983006624,0.002,2803.9,2803.4,0.51250739]
[1763983006909,0.002,2803.9,2803.4,0.41250739]
[1763983007111,0.002,2803.9,2803.6,0.1]
[1763983009919,0.002,2803.9,2803.7,0.41250739]
[1763983010791,0.002,2803.9,2803.8,0.1]
[1763983011338,0.002,2803.9,2803.8,4.38001612]
[1763983011502,0.002,2803.9,2803.8,9.36206876]
[1763983011687,0.002,2803.9,2803.8,21.26303776]
[1763983012196,0.002,2803.9,2803.8,21.48903776]
[1763983012616,0.002,2803.9,2803.8,72.44485009]
[1763983012828,0.002,2803.9,2803.8,67.09548209]
[1763983013193,0.002,2803.9,2803.8,52.44890009]
[1763983013401,0.002,2803.9,2803.8,14.81912839]
[1763983013620,0.002,2803.9,2803.8,24.80964839]
[1763983013906,0.002,2803.9,2803.8,24.42798039]
[1763983014442,0.002,2803.9,2803.8,21.89920539]
[1763983014608,0.002,2803.9,2803.8,21.89847174]
[1763983014955,0.002,2803.9,2803.8,22.66355674]
[1763983015306,0.002,2803.9,2803.8,16.05688176]
[1763983015703,0.002,2803.9,2803.8,23.67480776]
[1763983016821,0.002,2803.9,2803.8,35.61300876]
[1763983017225,0.002,2803.9,2803.8,26.74919276]
[1763983017821,0.002,2803.9,2803.8,34.00592676]
[1763983018944,0.002,2803.9,2803.8,33.43613076]
[1763983019246,0.002,2803.9,2803.8,1.64091656]
[1763983019551,0.002,2803.9,2803.8,1.23299264]
[1763983019708,0.002,2803.9,2803.8,0.226]
[1763983020941,0.002,2803.9,2803.7,0.41250739]
[1763983024066,0.0012,2803.9,2803.7,0.41250739]
[1763983028871,0.0012,2803.9,2802.8,0.001]
[1763983029394,0.0012,2803.9,2803.2,0.14299324]
[1763983030273,0.0012,2803.9,2803.6,0.001]
[1763983034396,0.226,2803.8,2803.6,0.001]
[1763983035860,0.0012,2803.9,2803.6,0.001]
[1763983038414,0.0012,2803.9,2803.6,0.14501624]
[1763983041420,0.6797553,2803.9,2803.6,0.14501624]
[1763983041985,6.558353,2803.8,2803.6,0.14501624]
[1763983043314,6.558353,2803.8,2803.6,0.001]
[1763983046242,0.90699264,2803.7,2803.6,0.001]
[1763983047816,1.13219264,2803.7,2803.6,0.001]
[1763983049318,1.46604169,2803.7,2803.6,0.001]
[1763983052348,2.28725438,2803.7,2803.6,0.001]
[1763983055346,0.55984905,2803.7,2803.6,0.001]
[1763983055722,0.33384905,2803.7,2803.6,0.001]
[1763983055918,0.41253216,2803.8,2803.6,0.001]
[1763983056115,0.18653216,2803.8,2803.6,0.001]
[1763983056441,0.41253216,2803.8,2803.6,0.001]
[1763983057416,0.18653216,2803.8,2803.6,0.001]
[1763983057730,0.0012,2803.9,2803.6,0.001]
[1763983058342,0.0012,2803.9,2803.6,0.101]
[1763983058758,0.0012,2803.9,2803.8,0.1]
[1763983059267,0.0012,2803.9,2803.7,0.68043524]
[1763983059463,0.0012,2803.9,2803.6,0.001]
[1763983062240,0.0012,2803.9,2803.7,0.1]
[1763983062432,0.0012,2803.9,2803.6,0.001]
[1763983062750,0.0012,2803.9,2803.7,0.1]
[1763983063973,0.0012,2803.9,2803.8,0.14295338]
[1763983064781,0.0012,2803.9,2803.8,0.54845738]
[1763983064989,0.0012,2803.9,2803.8,4.21504558]
[1763983065143,0.0012,2803.9,2803.8,5.01949721]
[1763983065542,0.0012,2803.9,2803.8,35.92648985]
[1763983065738,0.0012,2803.9,2803.8,31.03910585]
[1763983065940,0.0012,2803.9,2803.8,30.80126085]
[1763983066547,0.0012,2803.9,2803.8,31.85995885]
[1763983066834,0.0012,2803.9,2803.8,30.95998885]
[1763983067033,0.0012,2803.9,2803.8,30.51059885]
[1763983067325,0.0012,2803.9,2803.8,26.91316885]
[1763983067525,0.0012,2803.9,2803.8,14.34353785]
[1763983067731,0.0012,2803.9,2803.8,11.59753785]
[1763983068625,0.0012,2803.9,2803.8,12.80614685]
[1763983068796,0.0012,2803.9,2803.8,13.15655485]
[1763983069308,0.0012,2803.9,2803.8,8.05031585]
[1763983069826,0.0012,2803.9,2803.8,13.21324985]
[1763983070627,0.0012,2803.9,2803.8,12.61625785]
[1763983070844,0.0012,2803.9,2803.8,12.02523085]
[1763983071017,0.0012,2803.9,2803.8,10.28326985]
[1763983071519,0.0004,2803.9,2803.8,10.28326985]
[1763983071719,0.0004,2803.9,2803.8,5.92648985]
[1763983072046,0.0004,2803.9,2803.8,4.88215765]
[1763983072247,0.0004,2803.9,2803.8,8.98991573]
[1763983072421,0.0004,2803.9,2803.8,8.95424985]
[1763983072845,0.0004,2803.9,2803.8,18.48156585]
[1763983073422,0.0004,2803.9,2803.8,17.86773685]
[1763983073819,0.0004,2803.9,2803.8,20.82598585]
[1763983074053,0.0004,2803.9,2803.8,19.36148585]
[1763983074225,0.0004,2803.9,2803.8,18.96560985]
[1763983074949,0.0004,2803.9,2803.8,17.30858385]
[1763983075248,0.0004,2803.9,2803.8,16.40319885]
[1763983075457,0.0004,2803.9,2803.8,24.75528952]
[1763983075750,0.0004,2803.9,2803.8,23.95789652]
[1763983076052,0.0004,2803.9,2803.8,25.62063352]
[1763983076414,0.0004,2803.9,2803.8,23.28146652]
[1763983076923,0.0004,2803.9,2803.8,1.95439765]
[1763983077147,0.0004,2803.9,2803.8,2.18039765]
[1763983077819,0.0004,2803.9,2803.8,6.15248985]
[1763983078151,0.0004,2803.9,2803.8,2.58590165]
[1763983078356,0.0004,2803.9,2803.8,1.78145002]
[1763983079456,0.0004,2803.9,2803.8,5.34803822]
[1763983080153,0.0004,2803.9,2803.8,1.78145002]
[1763983080660,0.0004,2803.9,2803.8,13.73221295]
[1763983080956,0.0004,2803.9,2803.8,29.14539407]
[1763983081250,0.0004,2803.9,2803.8,30.6187022]
[1763983081821,0.0004,2803.9,2803.8,33.6568732]
[1763983082047,0.0004,2803.9,2803.8,31.0531562]
[1763983082253,0.0004,2803.9,2803.8,29.8424702]
[1763983082454,0.0004,2803.9,2803.8,29.3283022]
[1763983082658,0.0004,2803.9,2803.8,29.32879532]
[1763983082860,0.0004,2803.9,2803.8,30.82178132]
[1763983083155,0.0004,2803.9,2803.8,32.61585774]
[1763983083959,0.0004,2803.9,2803.8,40.42666274]
[1763983084332,0.002,2804.2,2804.1,22.52334464]
[1763983084645,0.002,2804.2,2804.1,21.36057637]
[1763983084817,0.002,2804.2,2804.1,24.77214537]
[1763983085034,0.002,2804.2,2804.1,7.02524637]
[1763983085239,0.002,2804.2,2804.1,4.68221264]
[1763983085648,0.002,2804.2,2804.1,4.7178747]
[1763983085852,0.002,2804.2,2804.1,22.9598197]
[1763983086053,0.002,2804.2,2804.1,22.92415764]
[1763983086454,0.002,2804.2,2804.1,26.49036426]
[1763983086654,0.002,2804.2,2804.1,27.72372646]
[1763983086850,0.002,2804.2,2804.1,31.18056446]
[1763983087052,0.002,2804.2,2804.1,29.51089246]
[1763983087576,0.002,2804.2,2804.1,28.99502846]
[1763983087879,0.002,2804.2,2804.1,34.55510484]
[1763983089076,0.002,2804.2,2804.1,38.12725284]
[1763983089294,0.002,2805.2,2804.9,0.505504]
[1763983089473,0.002,2805.2,2804.9,6.46978564]
[1763983089685,0.002,2805.2,2804.9,6.13399264]
[1763983089848,0.002,2805.2,2804.9,15.94188892]
[1763983090163,0.002,2805.2,2804.9,10.59157503]
[1763983090384,0.002,2805.2,2804.9,16.05042974]
[1763983090547,0.002,2805.2,2804.9,9.89580274]
[1763983090944,0.002,2805.2,2804.9,7.24020874]
[1763983091164,0.002,2805.2,2804.9,3.44901926]
[1763983091361,0.002,2805.2,2804.9,7.24020874]
[1763983091550,0.002,2805.2,2804.9,9.37395574]
[1763983091750,0.002,2805.2,2804.9,3.67501926]
[1763983091940,0.002,2805.2,2804.9,9.8625604]
[1763983092146,0.002,2805.2,2804.9,14.18461551]
[1763983092574,0.002,2805.2,2804.9,5.34654351]
[1763983092877,0.002,2805.2,2804.9,0.87436139]
[1763983093079,0.002,2805.2,2804.9,5.34654351]
[1763983093282,0.002,2805.2,2804.9,6.32842872]
[1763983094078,0.002,2805.2,2804.9,2.76323924]
[1763983094252,0.002,2805.2,2804.9,2.43723924]
[1763983094457,0.002,2805.2,2804.9,1.68135403]
[1763983094657,0.002,2805.2,2804.9,0.36885739]
[1763983095450,0.002,2805.2,2804.9,0.46885739]
[1763983095649,0.0012,2805.0,2804.9,0.36885739]
[1763983095986,0.0012,2805.0,2804.9,0.14285739]
[1763983099405,0.0012,2805.0,2804.9,0.24285739]
[1763983100808,0.0012,2805.0,2804.9,0.14285739]
[1763983103278,0.0012,2805.0,2804.9,0.24285739]
[1763983104586,0.0012,2805.0,2804.9,1.31043725]
[1763983105398,0.0012,2805.0,2804.9,1.71594125]
[1763983105599,0.0012,2805.0,2804.9,5.28113073]
[1763983105930,0.0012,2805.0,2804.9,12.81292926]
[1763983106132,0.0012,2805.0,2804.9,12.77727737]
[1763983106353,0.0012,2805.0,2804.9,8.56702337]
[1763983108529,0.0012,2805.0,2804.9,15.16982726]
[1763983109120,0.0012,2805.0,2804.9,8.56702337]
[1763983109432,0.0012,2805.0,2804.9,0.14285739]
[1763983114639,0.0012,2805.0,2804.3,0.226]
[1763983114844,0.0012,2805.0,2804.4,0.14292375]
[1763983117592,0.0012,2805.0,2804.5,0.13565697]
[1763983117750,0.0012,2805.0,2804.5,0.1]
[1763983117946,0.0012,2805.0,2804.7,0.1]
[1763983118486,0.0012,2805.0,2804.5,0.226]
[1763983118487,0.0012,2805.0,2804.8,0.1]
[1763983118667,0.0012,2805.0,2804.8,0.14290639]
[1763983119183,0.0004,2805.0,2804.8,0.14290639]
[1763983123888,0.0004,2805.0,2804.4,0.001]
[1763983124197,0.0004,2805.0,2804.5,0.14292886]
[1763983127688,0.0004,2805.0,2804.4,0.001]
[1763983128012,0.33405167,2805.0,2804.4,0.14394622]
[1763983128201,0.0004,2805.0,2804.4,0.001]
[1763983128396,0.33405167,2805.0,2804.4,0.001]
[1763983128597,0.0004,2805.0,2804.4,0.001]
[1763983128904,0.33405167,2805.0,2804.4,0.001]
[1763983129073,0.0004,2805.0,2804.4,0.001]
[1763983129475,0.33405167,2805.0,2804.4,0.001]
[1763983129675,0.0004,2805.0,2804.4,0.001]
[1763983129895,0.33405167,2805.0,2804.4,0.001]
[1763983130071,0.0004,2805.0,2804.4,0.001]
[1763983132311,0.0004,2805.0,2804.5,0.14394622]
[1763983132726,0.0004,2805.0,2804.6,0.0356557]
[1763983132923,0.0004,2805.0,2804.7,0.1]
[1763983133217,0.0004,2805.0,2804.5,0.14394622]
[1763983139621,0.33407043,2804.9,2804.5,0.14394622]
[1763983139915,0.0004,2805.0,2804.5,0.14394622]
[1763983140086,0.33407409,2804.9,2804.5,0.14394622]
[1763983140283,0.0004,2805.0,2804.5,0.14394622]
[1763983140489,0.33415445,2804.9,2804.5,0.14394622]
[1763983140683,0.33415445,2804.8,2804.4,0.001]
[1763983140890,0.0004,2805.0,2804.4,0.001]
[1763983141200,0.405504,2804.8,2804.4,0.001]
[1763983141396,0.405504,2804.5,2804.4,0.001]
[1763983141611,4.87763426,2804.5,2804.4,0.001]
[1763983141825,10.18445952,2804.5,2804.4,0.001]
[1763983142049,24.061845,2804.3,2803.9,0.001]
[1763983142339,24.061845,2804.3,2803.8,0.001]
[1763983142340,15.73807664,2803.9,2803.8,0.001]
[1763983142509,6.45941943,2803.9,2803.8,0.001]
[1763983142923,6.68461943,2803.9,2803.8,0.001]
[1763983143097,16.69816043,2803.9,2803.8,0.001]
[1763983143611,9.20896643,2803.9,2803.8,0.001]
[1763983143812,8.71795843,2803.9,2803.8,0.001]
[1763983144012,11.03098043,2803.9,2803.8,0.001]
[1763983144218,10.80498043,2803.9,2803.8,0.001]
[1763983144385,6.68461943,2803.9,2803.8,0.001]
[1763983144590,5.88059284,2803.9,2803.8,0.001]
[1763983144790,5.3366545,2803.9,2803.8,0.001]
[1763983145216,5.68868109,2803.9,2803.8,0.001]
[1763983145397,5.91468109,2803.9,2803.8,0.001]
[1763983145593,5.68868109,2803.9,2803.8,0.001]
[1763983145808,3.46479761,2803.9,2803.8,0.001]
[1763983146010,0.226,2804.2,2803.8,0.001]
[1763983146406,0.33227401,2804.6,2803.8,0.001]
[1763983146606,0.226,2804.6,2803.8,0.001]
[1763983147196,0.80402659,2804.6,2803.8,0.001]
[1763983147532,0.43032932,2804.6,2803.8,0.001]
[1763983147704,0.226,2804.6,2803.8,0.001]
[1763983150241,0.18648968,2804.5,2803.8,0.001]
[1763983154350,0.18648968,2804.5,2803.8,0.1439544]
[1763983154842,0.18648968,2804.5,2803.9,0.1]
[1763983155818,0.18648968,2804.5,2803.8,0.1439544]
[1763983156241,0.18648968,2804.5,2803.8,0.001]
[1763983157843,0.226,2804.4,2803.8,0.001]
[1763983160454,0.226,2804.4,2803.8,0.007072]
[1763983160656,0.90699264,2804.2,2803.8,0.007072]
[1763983160855,0.9261651,2804.1,2803.8,0.007072]
[1763983163235,9.66715495,2803.7,2803.5,0.001]
[1763983163438,10.22589829,2803.7,2803.5,0.001]
[1763983164054,9.99989829,2803.7,2803.5,0.001]
[1763983164221,1.46573598,2803.7,2803.5,0.001]
[1763983166530,9.81959429,2803.7,2803.5,0.001]
[1763983166737,10.80155372,2803.7,2803.5,0.001]
[1763983170834,1.23893598,2803.7,2803.5,0.001]
[1763983171027,0.90619264,2803.7,2803.5,0.001]
[1763983172264,1.23946108,2803.7,2803.5,0.001]
[1763983172836,0.90619264,2803.7,2803.5,0.001]
[1763983176475,1.23974544,2803.7,2803.5,0.001]
[1763983179379,0.90619264,2803.7,2803.5,0.001]
[1763983180359,1.09272014,2803.7,2803.5,0.001]
[1763983182374,1.42642035,2803.7,2803.5,0.001]
[1763983182767,1.09272014,2803.7,2803.5,0.001]
[1763983184461,1.42658286,2803.7,2803.5,0.001]
[1763983189481,0.74639022,2803.7,2803.5,0.001]
[1763983190282,0.74559022,2803.7,2803.5,0.001]
[1763983192390,0.1857275,2803.7,2803.5,0.001]
[1763983196272,0.226,2804.1,2803.5,0.001]
[1763983196467,0.33442065,2804.0,2803.5,0.001]
[1763983196682,0.18649929,2804.0,2803.5,0.001]
[1763983197790,0.18649929,2804.0,2803.5,0.101]
[1763983197975,0.33436018,2804.3,2803.6,0.101]
[1763983198300,0.18647713,2804.3,2803.6,0.101]
[1763983198463,0.18647713,2804.3,2803.6,0.001]
[1763983198664,0.33428241,2804.2,2803.6,0.001]
[1763983198902,0.18647713,2804.3,2803.6,0.001]
[1763983199069,0.33429036,2804.2,2803.6,0.001]
[1763983199270,0.18647713,2804.3,2803.6,0.001]
[1763983199471,0.33427027,2804.2,2803.6,0.001]
[1763983199670,0.18647713,2804.3,2803.6,0.001]
[1763983199997,0.33427025,2804.2,2803.6,0.001]
[1763983200199,0.33427375,2804.1,2803.6,0.001]
[1763983200496,0.56027375,2804.0,2803.6,0.001]
[1763983200666,0.33427375,2803.9,2803.6,0.001]
[1763983200865,0.226,2804.0,2803.6,0.001]
[1763983201065,0.33436382,2803.9,2803.6,0.001]
[1763983201294,0.226,2804.0,2803.6,0.001]
[1763983201499,0.33437093,2803.9,2803.6,0.001]
[1763983201708,0.33437093,2803.8,2803.6,0.001]
[1763983201865,0.33437093,2803.7,2803.6,0.001]
[1763983202071,9.59509902,2803.7,2803.6,0.001]
[1763983202278,11.73061359,2803.7,2803.6,0.001]
[1763983202477,12.81852059,2803.7,2803.6,0.001]
[1763983202764,12.30864018,2803.7,2803.6,0.001]
[1763983203196,2.97137414,2803.7,2803.6,0.001]
[1763983203497,1.24136357,2803.7,2803.6,0.001]
[1763983203701,1.46736357,2803.7,2803.6,0.001]
[1763983209114,1.24136357,2803.7,2803.6,0.001]
[1763983209417,1.46736357,2803.7,2803.6,0.001]
[1763983211715,1.24136357,2803.7,2803.6,0.001]
[1763983211920,1.46736357,2803.7,2803.6,0.001]
[1763983213905,1.24136357,2803.7,2803.6,0.001]
[1763983214103,1.46656357,2803.7,2803.6,0.001]
[1763983216732,2.44859347,2803.7,2803.6,0.001]
[1763983217422,1.46656357,2803.7,2803.6,0.001]
[1763983220312,1.13499264,2803.7,2803.6,0.001]
[1763983221631,0.90899264,2803.7,2803.6,0.001]
[1763983221943,1.13499264,2803.7,2803.6,0.001]
[1763983224733,0.90899264,2803.7,2803.6,0.001]
[1763983224936,1.13499264,2803.7,2803.6,0.001]
[1763983225441,0.90899264,2803.7,2803.6,0.001]
[1763983225662,1.13499264,2803.7,2803.6,0.001]
[1763983226209,1.46915923,2803.7,2803.6,0.001]
[1763983226613,1.24315923,2803.7,2803.6,0.001]
[1763983227413,0.33616659,2803.7,2803.6,0.001]
[1763983227615,0.002,2803.7,2803.6,0.001]
[1763983228213,0.33641021,2803.7,2803.6,0.001]
[1763983228614,0.52293343,2803.7,2803.6,0.001]
[1763983230919,0.18852322,2803.7,2803.6,0.001]
[1763983231934,1.63153968,2803.7,2803.6,0.001]
[1763983232276,1.2865799,2803.7,2803.6,0.001]
[1763983233356,1.10082593,2803.7,2803.6,0.001]
[1763983233568,0.74879934,2803.7,2803.6,0.001]
[1763983237960,0.74799934,2803.7,2803.6,0.001]
[1763983242163,8.27176027,2803.7,2803.6,0.001]
[1763983246036,9.04235303,2803.7,2803.6,0.001]
[1763983246232,9.94658833,2803.7,2803.6,0.001]
[1763983247666,1.31249664,2803.6,2803.4,0.001]
[1763983247847,1.51037288,2803.5,2803.4,0.001]
[1763983248036,4.76850526,2803.5,2803.4,0.001]
[1763983254002,3.88576492,2803.5,2803.4,0.001]
[1763983254842,3.88776492,2803.5,2803.4,0.001]
[1763983257058,2.71166816,2803.5,2803.4,0.001]
[1763983259378,3.48167745,2803.5,2803.4,0.001]
[1763983260252,2.71166816,2803.5,2803.4,0.001]
[1763983260458,3.88725655,2803.5,2803.4,0.001]
[1763983260657,1.31249664,2803.4,2803.2,0.001]
[1763983260884,0.405504,2803.2,2802.5,0.001]
[1763983261083,3.70185119,2803.2,2802.5,0.001]
[1763983261383,3.75159749,2803.1,2802.5,0.001]
[1763983261584,1.73506451,2803.1,2802.5,0.001]
[1763983261750,2.83900958,2803.1,2802.5,0.001]
[1763983262361,4.32402881,2803.1,2802.5,0.001]
[1763983262545,4.85474256,2803.1,2802.5,0.001]
[1763983264150,3.34049822,2803.1,2802.5,0.001]
[1763983264964,3.91852481,2803.1,2802.5,0.001]
[1763983265163,4.85474256,2803.1,2802.5,0.14405767]
[1763983268101,3.34049822,2803.1,2802.5,0.14405767]
[1763983269067,0.90699264,2803.0,2802.5,0.14405767]
[1763983269226,9.34580127,2802.9,2802.5,0.001]
[1763983269522,10.45454161,2802.9,2802.5,0.001]
[1763983271424,0.405504,2802.7,2802.5,0.001]
[1763983271576,2.07452046,2802.6,2802.5,0.001]
[1763983271917,9.59828139,2802.6,2802.5,0.001]
[1763983272503,10.36635296,2802.6,2802.5,0.001]
[1763983273578,9.59828139,2802.6,2802.5,0.001]
[1763983273780,8.48954105,2802.6,2802.5,0.001]
[1763983273979,9.45401506,2802.6,2802.5,0.001]
[1763983275614,8.82251106,2802.6,2802.5,0.001]
[1763983275910,0.56027612,2802.6,2802.5,0.001]
[1763983277086,7.12542353,2802.6,2802.5,0.001]
[1763983277690,0.56027612,2802.6,2802.5,0.001]
[1763983278406,8.03241617,2802.6,2802.5,0.001]
[1763983279984,7.69814005,2802.6,2802.5,0.001]
[1763983280189,8.03180179,2802.6,2802.5,0.001]
[1763983280522,9.46698197,2802.6,2802.5,0.001]
[1763983281331,1.46665438,2802.6,2802.5,0.001]
[1763983282716,8.03180179,2802.6,2802.5,0.001]
[1763983285434,8.03100179,2802.6,2802.5,0.001]
[1763983285758,1.46585438,2802.6,2802.5,0.001]
[1763983286524,1.46585438,2802.6,2802.5,0.14406586]
[1763983287631,1.24065438,2802.6,2802.5,0.14406586]
[1763983289541,0.33366174,2802.6,2802.5,0.14406586]
[1763983291844,0.18658934,2802.7,2802.5,0.14406586]
[1763983292150,0.18658934,2802.7,2802.5,0.001]
[1763983292581,0.18658934,2802.7,2802.6,0.14406586]
[1763983292888,0.52075294,2802.7,2802.6,0.14406586]
[1763983293733,0.18658934,2802.7,2802.6,0.14406586]
[1763983295352,0.002,2802.8,2802.6,0.14406586]
[1763983297968,6.56714741,2802.8,2802.6,0.14406586]
[1763983298180,0.65671474,2802.7,2802.6,0.14406586]
[1763983298474,6.56714741,2802.8,2802.6,0.14406586]
[1763983303868,0.002,2802.8,2802.6,0.14406586]
[1763983306100,0.002,2802.8,2802.7,6.66514741]
[1763983306451,0.002,2802.8,2802.7,0.1]
[1763983306647,0.002,2802.8,2802.7,0.80362133]
[1763983307046,0.002,2802.8,2802.7,0.70362133]
[1763983307284,0.002,2802.8,2802.6,0.14406586]
[1763983309587,0.0012,2802.8,2802.6,0.14406586]
[1763983315824,6.56514741,2802.7,2802.6,0.14406586]
[1763983317304,7.47214005,2802.7,2802.6,0.14406586]
[1763983319002,0.90699264,2802.6,2802.5,0.001]
[1763983319203,2.07916078,2802.6,2802.5,0.001]
[1763983319408,2.65718737,2802.6,2802.5,0.001]
[1763983319596,3.59340512,2802.6,2802.5,0.001]
[1763983319925,1.17216814,2802.6,2802.5,0.001]
[1763983320094,7.80580503,2802.6,2802.5,0.001]
[1763983322600,8.78933562,2802.6,2802.5,0.001]
[1763983323025,10.08802516,2802.6,2802.5,0.001]
[1763983323197,9.32004937,2802.6,2802.5,0.001]
[1763983323806,8.03180503,2802.6,2802.5,0.001]
[1763983324013,8.83510553,2802.6,2802.5,0.001]
[1763983324929,7.92811289,2802.6,2802.5,0.001]
[1763983325231,1.13299264,2802.7,2802.5,0.001]
[1763983325611,0.0012,2802.8,2802.5,0.001]
[1763983325814,0.0012,2802.8,2802.5,0.101]
[1763983326014,0.0012,2802.8,2802.6,0.14302033]
[1763983332838,0.0004,2802.8,2802.6,0.14302033]
[1763983336239,0.0004,2802.8,2802.5,0.001]
[1763983336773,0.18699723,2802.8,2802.5,0.001]
[1763983338328,0.52032944,2802.8,2802.5,0.001]
[1763983338546,0.33333221,2802.7,2802.5,0.001]
[1763983338746,0.226,2802.6,2802.5,0.001]
[1763983338950,9.49801518,2802.6,2802.5,0.001]
[1763983339153,1.46632485,2802.6,2802.5,0.001]
[1763983344367,2.98056919,2802.6,2802.5,0.001]
[1763983344676,2.44985544,2802.6,2802.5,0.001]
[1763983344871,2.8139111,2802.6,2802.5,0.001]
[1763983347080,2.43763221,2802.6,2802.5,0.001]
[1763983347378,3.20625145,2802.6,2802.5,0.001]
[1763983348361,2.98025145,2802.6,2802.5,0.001]
[1763983348568,3.20625145,2802.6,2802.5,0.001]
[1763983349490,4.11324409,2802.6,2802.5,0.001]
[1763983350078,2.8139111,2802.6,2802.5,0.001]
[1763983350890,2.23588451,2802.6,2802.5,0.001]
[1763983353300,0.18699723,2802.8,2802.5,0.001]
[1763983353600,0.18699723,2802.8,2802.5,0.14403875]
[1763983353755,0.0004,2802.8,2802.5,0.14403875]
[1763983353956,0.0004,2802.8,2802.7,0.1]
[1763983354255,0.0004,2802.8,2802.5,0.14403875]
[1763983354455,7.52773842,2802.6,2802.5,0.001]
[1763983354655,8.66969337,2802.6,2802.5,0.001]
[1763983354886,9.60591112,2802.6,2802.5,0.001]
[1763983355186,2.98212086,2802.6,2802.5,0.001]
[1763983355378,2.17623564,2802.6,2802.5,0.001]
[1763983355904,33.40881355,2802.6,2802.5,0.001]
[1763983356721,32.8772998,2802.6,2802.5,0.001]
[1763983358462,32.8772998,2802.6,2802.3,0.001]
[1763983358463,0.93621775,2802.5,2802.3,0.001]
[1763983358664,2.63854716,2802.4,2802.3,0.001]
[1763983358896,6.70582272,2802.4,2802.3,0.001]
[1763983359062,13.02582272,2802.4,2802.3,0.001]
[1763983359898,12.47744363,2802.4,2802.3,0.001]
[1763983361406,13.55653647,2802.4,2802.3,0.001]
[1763983362101,2.39158948,2802.3,2801.9,0.001]